bitfinex-derivatives/quotes_BTCF0:USTF0_20250528
["timestamp","ask_amount","ask_price","bid_price","bid_amount"]
[1748455767813,0.03691555,107790.0,107780.0,3.41926761]
[1748455768516,0.03691555,107790.0,107780.0,3.41926235]
[1748455770221,0.03691555,107790.0,107780.0,3.61103979]
[1748455772614,0.03691555,107790.0,107780.0,3.61003979]
[1748455772817,0.03691555,107790.0,107780.0,3.56779206]
[1748455773011,0.03691555,107790.0,107780.0,3.61305244]
[1748455773012,0.00451555,107790.0,107780.0,3.61305244]
[1748455773213,0.03501555,107790.0,107780.0,3.61305244]
[1748455775523,5e-08,107790.0,107780.0,3.61305244]
[1748455775719,0.57230665,107800.0,107790.0,0.1854814]
[1748455776024,0.57230665,107800.0,107790.0,1.64001593]
[1748455776417,0.60470665,107800.0,107790.0,3.14001593]
[1748455776613,0.60470665,107800.0,107790.0,3.11448829]
[1748455776822,0.60470665,107800.0,107790.0,3.11648829]
[1748455777419,0.60470665,107800.0,107790.0,3.18730637]
[1748455777619,0.64815136,107800.0,107790.0,3.11648829]
[1748455777820,0.64815136,107800.0,107790.0,3.11748829]
[1748455778015,0.22267136,107800.0,107790.0,3.11748829]
[1748455778226,0.64807136,107800.0,107790.0,3.11748829]
[1748455778427,0.64807136,107800.0,107790.0,3.12026829]
[1748455778627,0.67877136,107800.0,107790.0,3.06241801]
[1748455780427,0.67877136,107800.0,107790.0,3.0879847]
[1748455780627,0.67881136,107800.0,107790.0,3.13329249]
[1748455781026,0.25337136,107800.0,107790.0,3.13329249]
[1748455781231,0.67889136,107800.0,107790.0,3.13329249]
[1748455781432,0.67889136,107800.0,107790.0,3.13329166]
[1748455783722,0.67889136,107800.0,107790.0,3.1333196]
[1748455783923,0.67889136,107800.0,107790.0,3.06244387]
[1748455784420,0.67889136,107800.0,107790.0,2.87034378]
[1748455784729,0.67889136,107800.0,107790.0,3.06244387]
[1748455785032,0.25337136,107800.0,107790.0,3.06244387]
[1748455785225,0.67877136,107800.0,107790.0,3.06244387]
[1748455785829,0.67877136,107800.0,107790.0,3.06245524]
[1748455788928,0.67853136,107800.0,107790.0,3.06245524]
[1748455789129,0.68304691,107800.0,107790.0,3.06245524]
[1748455790131,0.6396022,107800.0,107790.0,3.06245524]
[1748455790336,0.68308358,107800.0,107790.0,3.06245524]
[1748455791425,0.66905693,107800.0,107790.0,3.06245524]
[1748455792537,0.57291693,107800.0,107790.0,3.06245524]
[1748455793238,0.60381693,107800.0,107790.0,3.06245524]
[1748455794233,0.60381693,107800.0,107790.0,2.87035515]
[1748455794430,0.17889693,107800.0,107790.0,3.01713691]
[1748455794634,0.17889724,107800.0,107790.0,3.06244637]
[1748455795430,0.14799724,107800.0,107790.0,3.06244637]
[1748455798937,0.17919821,107800.0,107790.0,3.06244637]
[1748455799942,0.17919821,107800.0,107790.0,3.06281815]
[1748455800339,0.17919821,107800.0,107790.0,3.01750869]
[1748455800552,0.14799821,107800.0,107790.0,3.01750869]
[1748455800745,0.14799821,107800.0,107790.0,2.8254086]
[1748455800940,0.14799821,107800.0,107790.0,3.01750869]
[1748455801249,0.17949821,107800.0,107790.0,3.01750869]
[1748455803036,0.17949728,107800.0,107790.0,3.01750869]
[1748455805650,0.17949728,107800.0,107790.0,3.08833654]
[1748455805837,0.21229728,107800.0,107790.0,3.08833654]
[1748455806033,0.14799728,107800.0,107790.0,3.13361955]
[1748455806258,0.10451555,107800.0,107790.0,3.13361955]
[1748455806546,0.14799728,107800.0,107790.0,3.13361955]
[1748455806747,0.17939728,107800.0,107790.0,3.13361955]
[1748455807453,0.17939728,107800.0,107790.0,3.08833654]
[1748455807638,0.17939601,107800.0,107790.0,3.08833654]
[1748455808645,0.13591555,107800.0,107790.0,3.06278714]
[1748455809252,0.17939601,107800.0,107790.0,3.06278714]
[1748455809452,0.13591555,107800.0,107790.0,3.06278714]
[1748455809650,0.48939601,107800.0,107790.0,2.56068705]
[1748455809853,0.48939601,107800.0,107790.0,2.98372178]
[1748455809854,0.36319601,107800.0,107790.0,2.98372178]
[1748455810354,0.21039601,107800.0,107790.0,2.98372178]
[1748455811749,0.21039657,107800.0,107790.0,2.9837239]
[1748455812155,0.21039657,107800.0,107790.0,2.98372382]
[1748455812557,0.20588102,107800.0,107790.0,2.98372382]
[1748455812759,0.20588102,107800.0,107790.0,2.93844333]
[1748455812958,0.23908102,107800.0,107790.0,2.93844333]
[1748455813658,0.24359657,107800.0,107790.0,2.93844333]
[1748455814361,0.24359657,107800.0,107790.0,2.86762869]
[1748455814561,0.23908102,107800.0,107790.0,2.86762869]
[1748455815649,0.24359657,107800.0,107790.0,2.86762869]
[1748455817463,0.66803657,107800.0,107790.0,2.86762869]
[1748455817666,0.66352102,107800.0,107790.0,2.86762869]
[1748455820479,0.66351832,107800.0,107790.0,2.86762869]
[1748455820665,0.66803387,107800.0,107790.0,2.86762869]
[1748455821173,0.66803387,107800.0,107790.0,2.98370118]
[1748455821775,0.66351832,107800.0,107790.0,2.98370118]
[1748455822270,0.66351832,107800.0,107790.0,2.93844333]
[1748455824476,0.66351832,107800.0,107790.0,2.98367539]
[1748455824868,0.66351783,107800.0,107790.0,2.98367622]
[1748455826082,0.14347783,107800.0,107790.0,2.98367622]
[1748455826281,0.56767783,107800.0,107790.0,3.15367622]
[1748455826576,0.52424,107800.0,107790.0,3.15367622]
[1748455827374,0.52424,107800.0,107790.0,3.08286158]
[1748455827880,0.52424,107800.0,107790.0,3.27496167]
[1748455828086,0.52424,107800.0,107790.0,3.08286158]
[1748455828580,0.52424,107800.0,107790.0,2.99608616]
[1748455828779,0.52875555,107800.0,107790.0,3.11212776]
[1748455828980,0.52875555,107800.0,107790.0,3.11214858]
[1748455829383,0.52875555,107800.0,107790.0,3.30424867]
[1748455829776,0.52875555,107800.0,107790.0,3.11214858]
[1748455829975,0.10451555,107800.0,107790.0,3.11214858]
[1748455831884,0.52907555,107800.0,107790.0,3.11214858]
[1748455832682,0.52939555,107800.0,107790.0,3.11214858]
[1748455832985,9e-08,107810.0,107800.0,0.1854648]
[1748455833174,0.05777485,107820.0,107810.0,0.1854476]
[1748455833373,0.43906764,107830.0,107820.0,0.1854304]
[1748455833584,0.42524,107830.0,107820.0,3.20987185]
[1748455833790,0.42524,107830.0,107820.0,3.25790059]
[1748455834381,0.42524,107830.0,107820.0,3.3409007]
[1748455835087,0.4252,107830.0,107820.0,3.3446807]
[1748455836189,0.00012,107830.0,107820.0,3.3446807]
[1748455836378,0.42516,107830.0,107820.0,3.27404818]
[1748455836882,0.00012,107830.0,107820.0,3.3446807]
[1748455837287,0.01817478,107840.0,107830.0,0.1854132]
[1748455837479,0.44313478,107840.0,107830.0,1.5654391]
[1748455837791,0.44329478,107840.0,107830.0,1.5654391]
[1748455838479,0.44329478,107840.0,107830.0,1.57926048]
[1748455838675,0.01829478,107840.0,107830.0,1.57926048]
[1748455838875,0.44309478,107840.0,107830.0,1.57926048]
[1748455839075,0.01817478,107840.0,107830.0,3.06746457]
[1748455839275,0.44305478,107840.0,107830.0,3.06746457]
[1748455839486,0.44305478,107840.0,107830.0,3.12513295]
[1748455839687,0.01829478,107840.0,107830.0,3.12513295]
[1748455839987,0.47507478,107840.0,107830.0,3.12497624]
[1748455840392,0.47507478,107840.0,107830.0,3.06730786]
[1748455840778,0.47507478,107840.0,107830.0,3.07910377]
[1748455840982,0.50827478,107840.0,107830.0,3.07910377]
[1748455841186,0.50827478,107840.0,107830.0,2.87910377]
[1748455841590,0.50827478,107840.0,107830.0,2.87902958]
[1748455841792,0.50827478,107840.0,107830.0,2.91222958]
[1748455842388,0.00139132,107860.0,107850.0,0.185379]
[1748455842587,0.58929132,107860.0,107850.0,1.57362238]
[1748455842792,0.16457132,107860.0,107850.0,1.60682238]
[1748455842989,0.62199132,107860.0,107850.0,1.60682238]
[1748455843183,0.62211132,107860.0,107850.0,1.60682238]
[1748455843385,0.19739132,107860.0,107850.0,1.60682238]
[1748455843585,0.62207132,107860.0,107850.0,1.60682238]
[1748455844090,0.09871132,107860.0,107850.0,1.60682238]
[1748455844292,0.52335132,107860.0,107850.0,1.60682238]
[1748455844788,0.52335132,107860.0,107850.0,3.10682238]
[1748455844984,0.09871132,107860.0,107850.0,3.10682238]
[1748455845190,0.52327132,107860.0,107850.0,3.10682238]
[1748455849896,0.70863312,107860.0,107850.0,3.10682238]
[1748455850086,0.52327132,107860.0,107850.0,3.10682238]
[1748455850290,0.52778687,107860.0,107850.0,3.10682238]
[1748455850795,0.10322687,107860.0,107850.0,3.10682238]
[1748455851099,0.52746687,107860.0,107850.0,3.10682238]
[1748455851493,0.10322687,107860.0,107850.0,3.10682238]
[1748455851688,0.52742687,107860.0,107850.0,3.10682238]
[1748455852193,0.52742687,107860.0,107850.0,3.10960238]
[1748455854295,0.52742687,107860.0,107850.0,2.917659]
[1748455854500,0.52742687,107860.0,107850.0,3.10960238]
[1748455854994,0.52738687,107860.0,107850.0,3.10960238]
[1748455855200,0.59738687,107860.0,107850.0,2.95960238]
[1748455855395,0.59738687,107860.0,107850.0,3.10960238]
[1748455856200,1.05274867,107860.0,107850.0,2.851759]
[1748455856402,1.05274867,107860.0,107850.0,2.701759]
[1748455856607,1.10274867,107860.0,107850.0,2.701759]
[1748455857101,0.49322687,107860.0,107850.0,2.701759]
[1748455857402,0.81186867,107860.0,107850.0,2.91370238]
[1748455858514,0.81186867,107860.0,107850.0,2.94420238]
[1748455859995,0.81186867,107860.0,107850.0,2.97420238]
[1748455861101,0.81186867,107860.0,107850.0,2.97396192]
[1748455861996,0.28858867,107860.0,107850.0,2.97396192]
[1748455862196,0.81182867,107860.0,107850.0,2.97396192]
[1748455862506,0.81182867,107860.0,107850.0,3.03260614]
[1748455862507,0.86960352,107860.0,107850.0,3.03260614]
[1748455863006,0.77088352,107860.0,107850.0,2.97396192]
[1748455864112,0.77088242,107860.0,107850.0,3.01720564]
[1748455865705,0.86940242,107860.0,107850.0,3.01720564]
[1748455866096,0.86940242,107860.0,107850.0,3.01757742]
[1748455866494,1.24940242,107860.0,107850.0,2.82563404]
[1748455867303,1.24940242,107860.0,107850.0,2.82566483]
[1748455867505,1.33586479,107860.0,107850.0,2.88430905]
[1748455870406,1.24940242,107860.0,107850.0,2.94197743]
[1748455870607,1.33586479,107860.0,107850.0,2.82566483]
[1748455871103,1.33586479,107860.0,107850.0,2.88333321]
[1748455871498,1.33586479,107860.0,107850.0,2.82283321]
[1748455871709,1.33586479,107860.0,107850.0,2.82286168]
[1748455872212,1.33586479,107860.0,107850.0,2.88626168]
[1748455872505,1.33586479,107860.0,107850.0,3.14872198]
[1748455873710,1.33546479,107860.0,107850.0,3.14872198]
[1748455874520,1.33546479,107860.0,107850.0,3.07820506]
[1748455875213,1.30276479,107860.0,107850.0,3.07820506]
[1748455876404,1.30276479,107860.0,107850.0,2.9567786]
[1748455876604,1.30276479,107860.0,107850.0,2.88626168]
[1748455876802,1.33416479,107860.0,107850.0,3.07820506]
[1748455877915,0.90992479,107860.0,107850.0,3.07820506]
[1748455878114,1.05404479,107860.0,107850.0,3.07820506]
[1748455878305,1.05404479,107860.0,107850.0,3.12872198]
[1748455879833,1.05404479,107860.0,107850.0,3.05820506]
[1748455880509,1.05404479,107860.0,107850.0,3.1287321]
[1748455880905,1.05404479,107860.0,107850.0,3.05821518]
[1748455881103,1.05404479,107860.0,107850.0,3.1287321]
[1748455881515,0.62992479,107860.0,107850.0,3.05821518]
[1748455881712,1.05388479,107860.0,107850.0,3.1287321]
[1748455883919,1.05388479,107860.0,107850.0,3.12869302]
[1748455884121,1.02248479,107860.0,107850.0,3.12869302]
[1748455884810,1.02248479,107860.0,107850.0,3.12867593]
[1748455886523,1.02248479,107860.0,107850.0,2.86625471]
[1748455886711,1.02248479,107860.0,107850.0,3.12867593]
[1748455890018,1.02284479,107860.0,107850.0,3.12867593]
[1748455890223,0.95834479,107860.0,107850.0,3.12867593]
[1748455890522,0.95834479,107860.0,107850.0,3.07100755]
[1748455891115,0.95842479,107860.0,107850.0,3.07100755]
[1748455892224,0.25026409,107860.0,107850.0,3.12867593]
[1748455892426,0.24854409,107860.0,107850.0,3.12867593]
[1748455892614,0.67298409,107860.0,107850.0,3.12867593]
[1748455892819,0.67286409,107860.0,107850.0,3.12867593]
[1748455893020,0.67298409,107860.0,107850.0,3.08537992]
[1748455893222,0.71644095,107860.0,107850.0,3.12863549]
[1748455893930,0.67298409,107860.0,107850.0,3.19863549]
[1748455894624,0.85834479,107860.0,107850.0,3.19863549]
[1748455895134,0.75978479,107860.0,107850.0,3.19963549]
[1748455896024,0.75978479,107860.0,107850.0,3.24480393]
[1748455896628,0.75978479,107860.0,107850.0,3.24380393]
[1748455897418,0.75978479,107860.0,107850.0,3.1986033]
[1748455897827,0.75978479,107860.0,107850.0,3.14093492]
[1748455898830,0.75978479,107860.0,107850.0,3.1986033]
[1748455899034,0.81978479,107860.0,107850.0,3.1986033]
[1748455899426,0.81978479,107860.0,107850.0,3.1286033]
[1748455899631,0.75978479,107860.0,107850.0,3.1286033]
[1748455901230,1.06978479,107860.0,107850.0,3.07093492]
[1748455901423,1.09998479,107860.0,107850.0,3.1286033]
[1748455901625,1.09998479,107860.0,107850.0,3.07093492]
[1748455901824,1.09998479,107860.0,107850.0,3.07093652]
[1748455903541,1.10018479,107860.0,107850.0,3.07093652]
[1748455904327,1.10018479,107860.0,107850.0,3.1286049]
[1748455906238,1.10018479,107860.0,107850.0,3.12861131]
[1748455907140,1.20562672,107860.0,107850.0,0.94199009]
[1748455907341,1.16418479,107860.0,107850.0,1.07622601]
[1748455907543,0.87395424,107860.0,107850.0,1.10772601]
[1748455907740,1.39663424,107860.0,107850.0,2.96852601]
[1748455909339,1.45457022,107860.0,107850.0,3.0273222]
[1748455909539,1.45457022,107860.0,107850.0,2.96852601]
[1748455909941,1.39663424,107860.0,107850.0,2.83541714]
[1748455910140,1.39663424,107860.0,107850.0,2.74259005]
[1748455910948,1.51221782,107860.0,107850.0,2.74259005]
[1748455911439,1.39663424,107860.0,107850.0,2.74259005]
[1748455915043,1.39663424,107860.0,107850.0,2.68379462]
[1748455915252,1.39663424,107860.0,107850.0,2.49189032]
[1748455915851,1.68125454,107860.0,107850.0,0.95989032]
[1748455916055,2.00559217,107860.0,107850.0,0.00315178]
[1748455916453,2.14999396,107860.0,107850.0,0.00315178]
[1748455917141,2.09999396,107860.0,107850.0,0.00315178]
[1748455917555,2.29189826,107860.0,107850.0,0.00315178]
[1748455917857,2.29189826,107860.0,107840.0,1.89133952]
[1748455917858,0.185378,107850.0,107840.0,1.89133952]
[1748455918057,0.91400974,107850.0,107840.0,1.89133952]
[1748455919857,1.00673374,107850.0,107840.0,2.07673462]
[1748455920257,1.00673374,107850.0,107840.0,1.89133952]
[1748455920655,0.89101706,107850.0,107840.0,1.89233952]
[1748455921057,0.89101706,107850.0,107840.0,1.53153952]
[1748455921256,1.00673374,107850.0,107840.0,1.53053952]
[1748455921460,0.97771799,107850.0,107840.0,1.53053952]
[1748455921956,0.97771715,107850.0,107840.0,1.89133952]
[1748455922158,1.02771715,107850.0,107840.0,1.89133952]
[1748455922356,1.14343383,107850.0,107840.0,2.07673462]
[1748455922552,1.02771715,107850.0,107840.0,2.07673462]
[1748455922755,1.14643383,107850.0,107840.0,2.07673462]
[1748455923558,1.57127383,107850.0,107840.0,2.10673462]
[1748455923757,1.45555715,107850.0,107840.0,2.13963462]
[1748455923960,1.45555715,107850.0,107840.0,2.17033462]
[1748455925459,1.4600727,107850.0,107840.0,2.17033462]
[1748455925662,1.3673487,107850.0,107840.0,2.17033462]
[1748455926066,1.3673487,107850.0,107840.0,1.98493952]
[1748455926262,1.3673487,107850.0,107840.0,1.59413952]
[1748455926570,1.3673487,107850.0,107840.0,1.77953432]
[1748455927258,1.3673487,107850.0,107840.0,0.27953432]
[1748455927648,1.3673487,107850.0,107840.0,1.77953432]
[1748455928262,1.3673487,107850.0,107840.0,0.09413952]
[1748455929762,0.9425087,107850.0,107840.0,0.10413952]
[1748455929971,1.17646175,107850.0,107840.0,0.10413952]
[1748455930262,1.3684687,107850.0,107840.0,0.10413952]
[1748455930864,0.1853948,107840.0,107830.0,0.00278]
[1748455931063,1.05358465,107840.0,107830.0,0.251692]
[1748455931271,1.08498465,107840.0,107830.0,1.751692]
[1748455931471,1.08498465,107840.0,107830.0,2.112492]
[1748455932062,1.08498465,107840.0,107830.0,2.143792]
[1748455932871,1.08698465,107840.0,107830.0,2.143792]
[1748455933088,1.08698465,107840.0,107830.0,1.95838]
[1748455933386,0.8949777,107840.0,107830.0,2.143792]
[1748455933584,1.08698465,107840.0,107830.0,2.143792]
[1748455933792,1.08698465,107840.0,107830.0,1.782992]
[1748455934290,1.08698465,107840.0,107830.0,2.143792]
[1748455936089,1.51378465,107840.0,107830.0,2.143792]
[1748455939687,1.48238465,107840.0,107830.0,1.59758]
[1748455939989,1.61921002,107840.0,107830.0,0.0977]
[1748455940177,1.7349267,107840.0,107830.0,0.0977]
[1748455940490,1.7349267,107840.0,107830.0,1.5977]
[1748455940701,1.73944225,107840.0,107830.0,1.5977]
[1748455941883,1.73944225,107840.0,107830.0,1.59758]
[1748455942591,1.73944225,107840.0,107830.0,1.5948]
[1748455942792,1.73944225,107840.0,107830.0,0.09492]
[1748455943290,1.73944225,107840.0,107830.0,1.59492]
[1748455943991,1.35534703,107840.0,107830.0,1.59492]
[1748455944192,1.73944225,107840.0,107830.0,1.59492]
[1748455945386,1.73944225,107840.0,107830.0,1.5948]
[1748455945696,1.73944225,107840.0,107830.0,1.59492]
[1748455946080,1.98452557,107840.0,107830.0,0.09492]
[1748455946288,2.10024225,107840.0,107830.0,0.0948]
[1748455946687,2.10024225,107840.0,107830.0,0.09492]
[1748455949585,2.24464404,107840.0,107830.0,0.09492]
[1748455949781,2.10024225,107840.0,107830.0,0.09492]
[1748455951791,1.67344225,107840.0,107830.0,0.09492]
[1748455951995,2.09940225,107840.0,107830.0,0.09492]
[1748455952291,2.09940225,107840.0,107830.0,0.10492]
[1748455955082,1.98368557,107840.0,107830.0,0.10492]
[1748455955295,2.09948392,107840.0,107830.0,0.10492]
[1748455958095,1.2894287,107840.0,107830.0,0.10492]
[1748455958399,1.45419631,107840.0,107830.0,0.51237961]
[1748455958599,1.45419631,107840.0,107830.0,0.320332]
[1748455958987,1.02839631,107840.0,107830.0,0.320332]
[1748455959195,1.45419631,107840.0,107830.0,0.320332]
[1748455959401,1.33839796,107840.0,107830.0,0.320332]
[1748455959597,1.32165214,107840.0,107830.0,0.320332]
[1748455959895,1.32165214,107840.0,107830.0,1.09317961]
[1748455959896,1.4794842,107840.0,107830.0,1.09317961]
[1748455960793,1.4794842,107840.0,107830.0,1.15200895]
[1748455960993,1.48399975,107840.0,107830.0,1.15200895]
[1748455961185,1.59987577,107840.0,107830.0,1.15200895]
[1748455965196,1.59987577,107840.0,107830.0,1.09317961]
[1748455965508,1.45547398,107840.0,107830.0,1.09317961]
[1748455966199,1.45555398,107840.0,107830.0,1.09317961]
[1748455966604,1.45555398,107840.0,107830.0,1.15200895]
[1748455970711,1.45555398,107840.0,107830.0,0.95996134]
[1748455971209,1.45555398,107840.0,107830.0,1.15200895]
[1748455972111,1.26350637,107840.0,107830.0,1.15200895]
[1748455972408,1.26350637,107840.0,107830.0,0.95996134]
[1748455972609,1.45555398,107840.0,107830.0,0.95996134]
[1748455974007,1.40555398,107840.0,107830.0,0.95996134]
[1748455975294,1.40555398,107840.0,107830.0,0.901132]
[1748455976105,1.40555398,107840.0,107830.0,0.71572]
[1748455976310,1.63030159,107840.0,107830.0,0.71572]
[1748455976509,1.63030159,107840.0,107830.0,0.903912]
[1748455976510,1.66270159,107840.0,107830.0,0.903912]
[1748455977695,1.66270159,107840.0,107830.0,0.7185]
[1748455979007,1.71270159,107840.0,107830.0,0.7185]
[1748455979212,1.52065398,107840.0,107830.0,0.7185]
[1748455979407,1.74370159,107840.0,107830.0,0.5285]
[1748455980408,1.74370159,107840.0,107830.0,0.52838]
[1748455981599,1.21810159,107840.0,107830.0,0.713792]
[1748455981807,1.21810159,107840.0,107830.0,1.12583961]
[1748455981808,0.62698637,107840.0,107830.0,1.12583961]
[1748455982109,1.09011141,107840.0,107830.0,1.12583961]
[1748455982307,1.16176745,107840.0,107830.0,1.12583961]
[1748455982909,1.16164745,107840.0,107830.0,1.12583961]
[1748455983105,1.16176745,107840.0,107830.0,1.12583961]
[1748455983312,1.166283,107840.0,107830.0,1.12583961]
[1748455985109,1.166283,107840.0,107830.0,0.933792]
[1748455985310,1.166283,107840.0,107830.0,1.12583961]
[1748455985918,1.19527398,107840.0,107830.0,1.18466895]
[1748455987412,1.28210829,107840.0,107830.0,1.18466895]
[1748455987621,1.19523398,107840.0,107830.0,1.18466895]
[1748455987826,1.19523398,107840.0,107830.0,1.19466895]
[1748455988822,1.19523398,107840.0,107830.0,1.18466895]
[1748455989422,1.19071843,107840.0,107830.0,1.18466895]
[1748455989713,0.25900236,107840.0,107830.0,1.37671656]
[1748455989913,0.9283963,107840.0,107830.0,1.44174799]
[1748455990311,0.88495264,107840.0,107830.0,3.01352176]
[1748455990618,0.46338819,107840.0,107830.0,2.95585338]
[1748455990810,0.88930819,107840.0,107830.0,2.95585338]
[1748455991005,0.46338819,107840.0,107830.0,2.95585348]
[1748455991208,0.88742819,107840.0,107830.0,2.95585348]
[1748455991407,0.88742819,107840.0,107830.0,2.82147425]
[1748455991608,0.82950905,107840.0,107830.0,2.76380557]
[1748455991817,0.21807425,107840.0,107830.0,2.95585318]
[1748455992118,0.82942915,107840.0,107830.0,3.01352156]
[1748455992321,0.82930915,107840.0,107830.0,3.01352156]
[1748455992618,0.82939858,107840.0,107830.0,3.01348629]
[1748455992818,0.82939858,107840.0,107830.0,2.7637703]
[1748455993013,0.82939858,107840.0,107830.0,2.76375743]
[1748455993322,0.65939848,107840.0,107830.0,3.12649455]
[1748455993818,0.65939848,107840.0,107830.0,3.11440111]
[1748455994016,0.65939848,107840.0,107830.0,3.12849442]
[1748455994714,0.61599035,107840.0,107830.0,3.03675708]
[1748455995120,0.61599035,107840.0,107830.0,3.03675752]
[1748455995816,0.19003035,107840.0,107830.0,3.03675752]
[1748455996017,0.61579035,107840.0,107830.0,3.03675752]
[1748455996322,0.61579035,107840.0,107830.0,3.13957136]
[1748455996517,0.61579035,107840.0,107830.0,3.13956968]
[1748455996713,0.61579035,107840.0,107830.0,3.13953309]
[1748455996921,0.61579035,107840.0,107830.0,3.1395332]
[1748455997115,0.61571035,107840.0,107830.0,3.1395332]
[1748455997312,1e-08,107850.0,107840.0,0.1853948]
[1748455997514,0.60304078,107880.0,107850.0,0.0463406]
[1748455997817,0.31399591,107880.0,107870.0,0.78026622]
[1748455998019,1.55559113,107880.0,107870.0,2.3556903]
[1748455998321,1.72437349,107880.0,107870.0,1.6508]
[1748455998506,1.66645435,107880.0,107870.0,1.66487237]
[1748455998711,1.72420115,107880.0,107870.0,2.21101567]
[1748455998906,1.66645435,107880.0,107870.0,2.21101567]
[1748455999118,1.72420098,107880.0,107870.0,2.21101567]
[1748455999318,1.72420122,107880.0,107870.0,2.21101567]
[1748455999621,1.72420122,107880.0,107870.0,0.6969433]
[1748455999816,1.72420122,107880.0,107870.0,0.71101579]
[1748456000122,1.63217486,107880.0,107870.0,0.71101579]
[1748456000323,1.63217486,107880.0,107870.0,0.71379579]
[1748456000815,1.63217486,107880.0,107870.0,0.71378806]
[1748456001011,1.57442799,107880.0,107870.0,0.52844476]
[1748456001213,0.85747913,107880.0,107870.0,0.90565692]
[1748456001415,0.78434706,107880.0,107870.0,0.90565699]
[1748456001718,0.91975316,107880.0,107870.0,0.93675561]
[1748456001921,0.91963316,107880.0,107870.0,0.74488675]
[1748456002114,1.42162202,107880.0,107870.0,0.74488685]
[1748456002316,1.42162202,107880.0,107870.0,0.7448832]
[1748456002517,1.42162202,107880.0,107870.0,0.74488339]
[1748456002717,1.42162202,107880.0,107870.0,0.74488079]
[1748456003818,1.43519999,107880.0,107870.0,0.74488079]
[1748456004516,1.42162202,107880.0,107870.0,0.74487666]
[1748456004923,1.42162202,107880.0,107870.0,0.74487516]
[1748456005616,0.48864706,107880.0,107870.0,0.74487516]
[1748456005817,0.05961535,107880.0,107870.0,1.20861288]
[1748456006129,0.48597535,107880.0,107870.0,1.5172791]
[1748456006314,0.48585535,107880.0,107870.0,2.82540197]
[1748456006518,0.48597535,107880.0,107870.0,2.57486689]
[1748456006717,0.67130165,107880.0,107870.0,2.24486759]
[1748456006930,0.99670165,107880.0,107870.0,2.24486759]
[1748456007124,0.57046165,107880.0,107870.0,2.27506759]
[1748456007318,1.12756165,107880.0,107870.0,2.27506759]
[1748456007521,1.12756165,107880.0,107870.0,2.2610234]
[1748456007727,1.12756165,107880.0,107870.0,2.27505861]
[1748456008027,1.12756165,107880.0,107870.0,2.2750569]
[1748456008329,1.12756165,107880.0,107870.0,2.27505654]
[1748456008827,1.12756165,107880.0,107870.0,2.27505728]
[1748456009325,0.70108165,107880.0,107870.0,2.27505728]
[1748456009535,0.86756165,107880.0,107870.0,2.52692614]
[1748456009827,0.77074175,107880.0,107870.0,2.52692483]
[1748456010030,0.77086175,107880.0,107870.0,2.52692493]
[1748456010417,0.77086175,107880.0,107870.0,2.5269249]
[1748456010825,0.58353535,107880.0,107870.0,2.5269249]
[1748456011325,0.76886175,107880.0,107870.0,2.52692553]
[1748456012129,0.76786175,107880.0,107870.0,2.52692553]
[1748456012521,0.15605535,107880.0,107870.0,2.52692553]
[1748456012721,0.15605535,107880.0,107870.0,2.52692721]
[1748456012923,0.58237535,107880.0,107870.0,2.52692721]
[1748456013131,0.58249535,107880.0,107870.0,2.51289226]
[1748456013327,0.58249535,107880.0,107870.0,2.52692598]
[1748456014728,0.58249535,107880.0,107870.0,2.52692891]
[1748456014930,0.5870109,107880.0,107870.0,2.52693057]
[1748456015729,0.7723373,107880.0,107870.0,2.52793057]
[1748456015930,0.5870109,107880.0,107870.0,2.52893057]
[1748456016131,0.5870109,107880.0,107870.0,2.51489226]
[1748456016331,0.5870109,107880.0,107870.0,2.52893212]
[1748456017131,0.5870109,107880.0,107870.0,2.52892542]
[1748456017733,0.5870109,107880.0,107870.0,2.52792542]
[1748456018431,0.4872909,107880.0,107870.0,2.74692542]
[1748456018728,0.4872909,107880.0,107870.0,2.73289226]
[1748456018932,0.4872909,107880.0,107870.0,2.80559858]
[1748456018933,0.4871709,107880.0,107870.0,2.80559858]
[1748456019131,0.4872909,107880.0,107870.0,2.80559858]
[1748456019328,0.4872909,107880.0,107870.0,2.80559852]
[1748456020336,0.6772909,107880.0,107870.0,2.52759852]
[1748456020925,0.6772909,107880.0,107870.0,2.52760688]
[1748456021729,0.6772909,107880.0,107870.0,2.52760687]
[1748456022418,0.7083909,107880.0,107870.0,2.52760687]
[1748456022630,0.7083909,107880.0,107870.0,2.51355848]
[1748456022933,0.7083909,107880.0,107870.0,2.52761237]
[1748456023134,0.7083909,107880.0,107870.0,2.52761093]
[1748456024233,0.7083909,107880.0,107870.0,2.87435848]
[1748456024537,0.7083909,107880.0,107870.0,2.88841308]
[1748456025335,0.7083909,107880.0,107870.0,2.69654763]
[1748456025336,1.08558616,107880.0,107870.0,2.69654763]
[1748456025537,1.20629787,107880.0,107870.0,2.69654763]
[1748456025735,1.01442901,107880.0,107870.0,2.69655497]
[1748456026037,1.01442901,107880.0,107870.0,2.69655512]
[1748456026735,1.01442901,107880.0,107870.0,2.69660049]
[1748456027036,1.01442901,107880.0,107870.0,2.68253499]
[1748456027240,1.01442901,107880.0,107870.0,2.69660759]
[1748456027440,1.01442901,107880.0,107870.0,2.68253499]
[1748456027737,1.01442901,107880.0,107870.0,2.69661017]
[1748456028037,1.01442901,107880.0,107870.0,2.63789858]
[1748456028643,1.01442901,107880.0,107870.0,2.6218234]
[1748456028841,1.01442901,107880.0,107870.0,2.63590185]
[1748456029446,1.01370901,107880.0,107870.0,2.63590185]
[1748456030037,1.01370901,107880.0,107870.0,2.63590362]
[1748456030238,1.01370901,107880.0,107870.0,2.63590356]
[1748456030634,1.29246023,107880.0,107870.0,2.63590501]
[1748456030843,1.29246023,107880.0,107870.0,2.63590506]
[1748456031445,1.29246023,107880.0,107870.0,1.1218234]
[1748456031644,1.29246023,107880.0,107870.0,1.19461696]
[1748456031947,1.29246023,107880.0,107870.0,2.69461696]
[1748456032537,1.29246023,107880.0,107870.0,2.68053499]
[1748456032739,1.29246023,107880.0,107870.0,2.69461865]
[1748456033543,1.29246023,107880.0,107870.0,2.69461901]
[1748456033750,1.29246023,107880.0,107870.0,2.69461928]
[1748456033934,1.29246023,107880.0,107870.0,2.66441928]
[1748456034843,1.29246023,107880.0,107870.0,2.66442315]
[1748456035548,1.29246023,107880.0,107870.0,2.66442742]
[1748456035859,1.23474852,107880.0,107870.0,2.57461607]
[1748456036542,1.23474852,107880.0,107870.0,2.5605234]
[1748456036747,1.23474852,107880.0,107870.0,2.63332867]
[1748456036748,1.26374218,107880.0,107870.0,2.63332867]
[1748456037349,1.26374218,107880.0,107870.0,2.63332947]
[1748456037555,1.35059867,107880.0,107870.0,2.63332899]
[1748456037855,1.26374218,107880.0,107870.0,2.63332899]
[1748456038244,1.26374218,107880.0,107870.0,2.63333803]
[1748456038456,1.26574218,107880.0,107870.0,2.63333803]
[1748456038751,1.35259321,107880.0,107870.0,2.63333803]
[1748456038956,0.92727321,107880.0,107870.0,0.41173803]
[1748456039151,2.85241502,107880.0,107870.0,0.13688304]
[1748456039353,2.90241502,107880.0,107870.0,0.01688304]
[1748456039543,2.90241502,107880.0,107870.0,0.60612844]
[1748456039544,1.94174801,107880.0,107870.0,0.60612844]